[Event "December 5 Late 2023"]
[Site "https://www.chess.com"]
[Date "2023.12.05"]
[Round "4"]
[White "Wu, Derek"]
[Black "Djabri, Massinas"]
[Result "1-0"]
[Board "65"]
[TimeControl "180+1"]
[WhiteFideId "30914558"]
[BlackFideId "7905726"]
[WhiteElo "2694"]
[BlackElo "2465"]
[WhiteTeam "USA"]
[BlackTeam "ALG"]
[WhiteClock "0:00:22"]
[BlackClock "0:00:00"]

1. e4 {[%clk 0:03:00]}  c5 {[%clk 0:02:58]} 2. Nf3 {[%clk 0:03:00]}  d6 {[%clk 0:02:59]} 3. d4 {[%clk 0:03:01]}  cxd4 {[%clk 0:03:00]} 4. Nxd4 {[%clk 0:03:02]}  Nf6 {[%clk 0:03:00]} 5. Nc3 {[%clk 0:03:02]}  a6 {[%clk 0:03:00]} 6. Qe2 {[%clk 0:03:02]}  e5 {[%clk 0:02:59]} 7. Nf5 {[%clk 0:03:02]}  Bxf5 {[%clk 0:02:55]} 8. exf5 {[%clk 0:03:03]}  h6 {[%clk 0:02:53]} 9. f4 {[%clk 0:02:53]}  Nc6 {[%clk 0:02:50]} 10. Be3 {[%clk 0:02:52]}  Qa5 {[%clk 0:02:28]} 11. O-O-O {[%clk 0:02:44]}  Be7 {[%clk 0:02:28]} 12. g4 {[%clk 0:02:39]}  exf4 {[%clk 0:02:13]} 13. Bxf4 {[%clk 0:02:40]}  O-O {[%clk 0:02:13]} 14. h4 {[%clk 0:02:34]}  Rfe8 {[%clk 0:02:09]} 15. Qg2 {[%clk 0:02:00]}  Bf8 {[%clk 0:01:54]} 16. Kb1 {[%clk 0:01:54]}  d5 {[%clk 0:01:00]} 17. g5 {[%clk 0:01:50]}  Ne4 {[%clk 0:01:00]} 18. Nxd5 {[%clk 0:01:33]}  Rad8 {[%clk 0:00:31]} 19. Bc4 {[%clk 0:01:32]}  Qc5 {[%clk 0:00:24]} 20. Bb3 {[%clk 0:01:18]}  Nd4 {[%clk 0:00:24]} 21. Be3 {[%clk 0:00:37]}  Rxd5 {[%clk 0:00:03]} 22. Bxd5 {[%clk 0:00:38]}  Qxd5 {[%clk 0:00:01]} 23. Rhg1 {[%clk 0:00:27]}  Qb5 {[%clk 0:00:01]} 24. Bxd4 {[%clk 0:00:25]}  Ba3 {[%clk 0:00:01]} 25. c4 {[%clk 0:00:22]}  Qxc4 {[%clk 0:00:00]} 26. bxa3 {[%clk 0:00:22]} 1-0

[Event "December 5 Late 2023"]
[Site "https://www.chess.com"]
[Date "2023.12.05"]
[Round "4"]
[White "Rama, Tejas"]
[Black "Kanakaris, Georgios"]
[Result "0-1"]
[Board "67"]
[TimeControl "180+1"]
[WhiteFideId "30907381"]
[BlackFideId "4209460"]
[WhiteElo "2460"]
[BlackElo "2683"]
[WhiteTeam "USA"]
[BlackTeam "GRE"]
[WhiteClock "0:00:05"]
[BlackClock "0:00:15"]

1. d4 {[%clk 0:03:00]}  Nf6 {[%clk 0:02:59]} 2. c4 {[%clk 0:03:01]}  g6 {[%clk 0:02:59]} 3. Nf3 {[%clk 0:03:01]}  Bg7 {[%clk 0:03:00]} 4. Nc3 {[%clk 0:03:02]}  O-O {[%clk 0:03:00]} 5. e4 {[%clk 0:03:03]}  d6 {[%clk 0:03:00]} 6. Be2 {[%clk 0:03:03]}  e5 {[%clk 0:03:00]} 7. Be3 {[%clk 0:03:03]}  Ng4 {[%clk 0:03:00]} 8. Bg5 {[%clk 0:03:03]}  f6 {[%clk 0:03:00]} 9. Bc1 {[%clk 0:03:03]}  Nh6 {[%clk 0:02:54]} 10. c5 {[%clk 0:02:51]}  Nc6 {[%clk 0:02:55]} 11. cxd6 {[%clk 0:02:49]}  exd4 {[%clk 0:02:56]} 12. Nxd4 {[%clk 0:02:03]}  Qxd6 {[%clk 0:02:44]} 13. Nxc6 {[%clk 0:01:59]}  Qxc6 {[%clk 0:02:45]} 14. O-O {[%clk 0:01:53]}  Be6 {[%clk 0:02:30]} 15. Bb5 {[%clk 0:01:44]}  Qc5 {[%clk 0:02:22]} 16. Be3 {[%clk 0:01:43]}  Qe7 {[%clk 0:02:11]} 17. Nd5 {[%clk 0:01:42]}  Qf7 {[%clk 0:02:03]} 18. Nf4 {[%clk 0:01:35]}  Bc4 {[%clk 0:01:56]} 19. Bxc4 {[%clk 0:01:32]}  Qxc4 {[%clk 0:01:56]} 20. Rc1 {[%clk 0:01:15]}  Qf7 {[%clk 0:01:50]} 21. Qa4 {[%clk 0:00:59]}  Ng4 {[%clk 0:01:38]} 22. Bc5 {[%clk 0:00:59]}  Rfe8 {[%clk 0:01:33]} 23. Rfd1 {[%clk 0:00:51]}  c6 {[%clk 0:01:26]} 24. f3 {[%clk 0:00:47]}  Bh6 {[%clk 0:01:21]} 25. g3 {[%clk 0:00:41]}  Ne5 {[%clk 0:01:19]} 26. Kg2 {[%clk 0:00:39]}  b6 {[%clk 0:00:58]} 27. Be3 {[%clk 0:00:37]}  c5 {[%clk 0:00:58]} 28. Rd6 {[%clk 0:00:31]}  Rad8 {[%clk 0:00:54]} 29. Rcd1 {[%clk 0:00:29]}  Rxd6 {[%clk 0:00:51]} 30. Rxd6 {[%clk 0:00:30]}  Nc4 {[%clk 0:00:46]} 31. Rxf6 {[%clk 0:00:19]}  Nxe3+ {[%clk 0:00:45]} 32. Kf2 {[%clk 0:00:19]}  Nd1+ {[%clk 0:00:32]} 33. Ke2 {[%clk 0:00:13]}  Nxb2 {[%clk 0:00:15]} 34. Qc6 {[%clk 0:00:06]}  Qe7 {[%clk 0:00:10]} 35. Re6 {[%clk 0:00:06]}  Bxf4 {[%clk 0:00:10]} 36. Rxe7 {[%clk 0:00:06]}  Rxe7 {[%clk 0:00:10]} 37. Qa8+ {[%clk 0:00:05]}  Kf7 {[%clk 0:00:10]} 38. gxf4 {[%clk 0:00:06]}  Rd7 {[%clk 0:00:09]} 39. Qc6 {[%clk 0:00:06]}  Ke7 {[%clk 0:00:09]} 40. e5 {[%clk 0:00:06]}  Nc4 {[%clk 0:00:09]} 41. Qc8 {[%clk 0:00:06]}  Rd8 {[%clk 0:00:09]} 42. Qc7+ {[%clk 0:00:05]}  Rd7 {[%clk 0:00:10]} 43. Qc8 {[%clk 0:00:06]}  Na5 {[%clk 0:00:11]} 44. Qh8 {[%clk 0:00:06]}  c4 {[%clk 0:00:11]} 45. Qxh7+ {[%clk 0:00:06]}  Ke6 {[%clk 0:00:12]} 46. Qxg6+ {[%clk 0:00:07]}  Kd5 {[%clk 0:00:12]} 47. Qe4+ {[%clk 0:00:07]}  Kc5 {[%clk 0:00:12]} 48. Qe3+ {[%clk 0:00:07]}  Kb4 {[%clk 0:00:12]} 49. e6 {[%clk 0:00:07]}  Re7 {[%clk 0:00:12]} 50. a3+ {[%clk 0:00:08]}  Ka4 {[%clk 0:00:12]} 51. f5 {[%clk 0:00:09]}  Nb3 {[%clk 0:00:12]} 52. f6 {[%clk 0:00:09]}  Rxe6 {[%clk 0:00:12]} 53. f7 {[%clk 0:00:06]}  Rxe3+ {[%clk 0:00:12]} 54. Kxe3 {[%clk 0:00:07]}  c3 {[%clk 0:00:12]} 55. f8=Q {[%clk 0:00:07]}  a5 {[%clk 0:00:13]} 56. Qe8+ {[%clk 0:00:07]}  Kxa3 {[%clk 0:00:13]} 57. Qc6 {[%clk 0:00:07]}  Kb2 {[%clk 0:00:13]} 58. Qxb6 {[%clk 0:00:07]}  c2 {[%clk 0:00:13]} 59. Qf6+ {[%clk 0:00:07]}  Kb1 {[%clk 0:00:13]} 60. Qc3 {[%clk 0:00:05]}  c1=Q+ {[%clk 0:00:13]} 61. Qxc1+ {[%clk 0:00:05]}  Kxc1 {[%clk 0:00:14]} 62. h4 {[%clk 0:00:06]}  a4 {[%clk 0:00:14]} 63. h5 {[%clk 0:00:07]}  a3 {[%clk 0:00:15]} 64. h6 {[%clk 0:00:05]}  a2 {[%clk 0:00:15]} 0-1

[Event "December 5 Late 2023"]
[Site "https://www.chess.com"]
[Date "2023.12.05"]
[Round "4"]
[White "Amburgy, Ryan"]
[Black "Topalov, Aleksandar"]
[Result "1-0"]
[Board "68"]
[TimeControl "180+1"]
[WhiteFideId "30924820"]
[BlackFideId "925659"]
[WhiteElo "2673"]
[BlackElo "2454"]
[WhiteTeam "USA"]
[BlackTeam "SRB"]
[WhiteClock "0:00:19"]
[BlackClock "0:00:03"]

1. d4 {[%clk 0:03:00]}  Nf6 {[%clk 0:02:59]} 2. Nc3 {[%clk 0:03:01]}  d5 {[%clk 0:02:59]} 3. Bf4 {[%clk 0:03:01]}  Bf5 {[%clk 0:02:53]} 4. f3 {[%clk 0:03:01]}  h5 {[%clk 0:02:52]} 5. e3 {[%clk 0:03:01]}  c6 {[%clk 0:02:52]} 6. Bd3 {[%clk 0:03:00]}  Bxd3 {[%clk 0:02:52]} 7. cxd3 {[%clk 0:03:01]}  e6 {[%clk 0:02:50]} 8. Nge2 {[%clk 0:03:01]}  Bd6 {[%clk 0:02:44]} 9. O-O {[%clk 0:03:00]}  Bxf4 {[%clk 0:02:44]} 10. Nxf4 {[%clk 0:03:01]}  Nbd7 {[%clk 0:02:39]} 11. Rc1 {[%clk 0:03:00]}  O-O {[%clk 0:02:36]} 12. Qe2 {[%clk 0:02:38]}  Re8 {[%clk 0:02:33]} 13. Qf2 {[%clk 0:02:36]}  e5 {[%clk 0:02:31]} 14. dxe5 {[%clk 0:02:37]}  Nxe5 {[%clk 0:02:24]} 15. d4 {[%clk 0:02:37]}  Nc4 {[%clk 0:02:05]} 16. Rfe1 {[%clk 0:02:37]}  Nd6 {[%clk 0:02:05]} 17. Rc2 {[%clk 0:02:23]}  Qd7 {[%clk 0:01:43]} 18. Rce2 {[%clk 0:02:12]}  Qf5 {[%clk 0:01:39]} 19. Qg3 {[%clk 0:02:09]}  g5 {[%clk 0:01:11]} 20. Nxh5 {[%clk 0:01:56]}  Nxh5 {[%clk 0:01:05]} 21. Qxd6 {[%clk 0:01:56]}  g4 {[%clk 0:01:03]} 22. e4 {[%clk 0:01:26]}  Qg5 {[%clk 0:00:59]} 23. fxg4 {[%clk 0:01:13]}  Qxg4 {[%clk 0:00:58]} 24. Re3 {[%clk 0:01:09]}  Re6 {[%clk 0:00:56]} 25. Qd7 {[%clk 0:01:03]}  Rae8 {[%clk 0:00:46]} 26. Rf1 {[%clk 0:01:00]}  R8e7 {[%clk 0:00:40]} 27. Qc8+ {[%clk 0:00:59]}  Kg7 {[%clk 0:00:40]} 28. e5 {[%clk 0:00:49]}  Qxd4 {[%clk 0:00:35]} 29. Rf3 {[%clk 0:00:45]}  Rxe5 {[%clk 0:00:32]} 30. Ne2 {[%clk 0:00:40]}  Qb6 {[%clk 0:00:28]} 31. Qg4+ {[%clk 0:00:38]}  Kh7 {[%clk 0:00:25]} 32. Nd4 {[%clk 0:00:34]}  Rxe3 {[%clk 0:00:18]} 33. Qxh5+ {[%clk 0:00:34]}  Kg8 {[%clk 0:00:18]} 34. Rxe3 {[%clk 0:00:22]}  Rxe3 {[%clk 0:00:17]} 35. Qg5+ {[%clk 0:00:23]}  Kf8 {[%clk 0:00:16]} 36. Qxe3 {[%clk 0:00:23]}  Qxb2 {[%clk 0:00:15]} 37. h4 {[%clk 0:00:20]}  Qxa2 {[%clk 0:00:14]} 38. h5 {[%clk 0:00:20]}  Qb1+ {[%clk 0:00:14]} 39. Kh2 {[%clk 0:00:20]}  Qh7 {[%clk 0:00:14]} 40. Qg5 {[%clk 0:00:20]}  Qe4 {[%clk 0:00:13]} 41. Nf5 {[%clk 0:00:16]}  Qe5+ {[%clk 0:00:13]} 42. Kh3 {[%clk 0:00:16]}  Qc3+ {[%clk 0:00:11]} 43. g3 {[%clk 0:00:16]}  Qe5 {[%clk 0:00:05]} 44. Qd8+ {[%clk 0:00:16]}  Qe8 {[%clk 0:00:05]} 45. Qxe8+ {[%clk 0:00:17]}  Kxe8 {[%clk 0:00:05]} 46. h6 {[%clk 0:00:18]}  Kf8 {[%clk 0:00:03]} 47. h7 {[%clk 0:00:19]} 1-0

[Event "December 5 Late 2023"]
[Site "https://www.chess.com"]
[Date "2023.12.05"]
[Round "4"]
[White "Della Morte, German"]
[Black "Atanasov, Anthony"]
[Result "1-0"]
[Board "69"]
[TimeControl "180+1"]
[WhiteFideId "113522"]
[BlackFideId "2623897"]
[WhiteElo "2447"]
[BlackElo "2660"]
[WhiteTeam "ARG"]
[BlackTeam "CAN"]
[WhiteClock "0:01:38"]
[BlackClock "0:00:00"]

1. e4 {[%clk 0:03:00]}  c5 {[%clk 0:02:56]} 2. Nc3 {[%clk 0:03:00]}  d6 {[%clk 0:02:56]} 3. g3 {[%clk 0:03:00]}  Nc6 {[%clk 0:02:56]} 4. Bg2 {[%clk 0:03:00]}  e6 {[%clk 0:02:51]} 5. d3 {[%clk 0:03:01]}  Nf6 {[%clk 0:02:51]} 6. f4 {[%clk 0:03:01]}  d5 {[%clk 0:02:51]} 7. e5 {[%clk 0:03:01]}  Nd7 {[%clk 0:02:51]} 8. Nf3 {[%clk 0:03:01]}  Be7 {[%clk 0:02:51]} 9. O-O {[%clk 0:03:01]}  b6 {[%clk 0:02:51]} 10. Rb1 {[%clk 0:02:59]}  Bb7 {[%clk 0:02:51]} 11. Ne2 {[%clk 0:02:58]}  Qc7 {[%clk 0:02:51]} 12. c3 {[%clk 0:02:59]}  h5 {[%clk 0:02:50]} 13. d4 {[%clk 0:02:59]}  b5 {[%clk 0:02:49]} 14. Be3 {[%clk 0:02:59]}  c4 {[%clk 0:02:46]} 15. b3 {[%clk 0:02:58]}  Nb6 {[%clk 0:02:43]} 16. b4 {[%clk 0:02:58]}  a5 {[%clk 0:02:43]} 17. a3 {[%clk 0:02:58]}  Na4 {[%clk 0:02:36]} 18. Qc2 {[%clk 0:02:58]}  g6 {[%clk 0:02:35]} 19. Ng5 {[%clk 0:02:56]}  Ba6 {[%clk 0:02:30]} 20. Bh3 {[%clk 0:02:54]}  Bc8 {[%clk 0:02:03]} 21. Nxe6 {[%clk 0:02:24]}  Bxe6 {[%clk 0:01:51]} 22. Bxe6 {[%clk 0:02:23]}  fxe6 {[%clk 0:01:52]} 23. Qxg6+ {[%clk 0:02:23]}  Kd8 {[%clk 0:01:45]} 24. Qxe6 {[%clk 0:02:23]}  Qd7 {[%clk 0:01:44]} 25. Qxd7+ {[%clk 0:02:17]}  Kxd7 {[%clk 0:01:44]} 26. f5 {[%clk 0:02:18]}  Nd8 {[%clk 0:01:18]} 27. Bd2 {[%clk 0:02:11]}  Kc6 {[%clk 0:01:08]} 28. Kg2 {[%clk 0:02:04]}  axb4 {[%clk 0:00:50]} 29. axb4 {[%clk 0:02:03]}  Ra6 {[%clk 0:00:29]} 30. f6 {[%clk 0:01:56]}  Bf8 {[%clk 0:00:29]} 31. Nf4 {[%clk 0:01:57]}  Bh6 {[%clk 0:00:22]} 32. Ng6 {[%clk 0:01:51]}  Bxd2 {[%clk 0:00:10]} 33. Nxh8 {[%clk 0:01:51]}  Nxc3 {[%clk 0:00:11]} 34. f7 {[%clk 0:01:43]}  Nxf7 {[%clk 0:00:02]} 35. Rf6+ {[%clk 0:01:43]}  Kc7 {[%clk 0:00:01]} 36. Rxa6 {[%clk 0:01:41]}  Nxb1 {[%clk 0:00:01]} 37. Nxf7 {[%clk 0:01:40]}  Bxb4 {[%clk 0:00:01]} 38. e6 {[%clk 0:01:38]}  c3 {[%clk 0:00:00]} 39. Ne5 {[%clk 0:01:38]} 1-0

[Event "December 5 Late 2023"]
[Site "https://www.chess.com"]
[Date "2023.12.05"]
[Round "4"]
[White "Thomforde-Toates, Noah"]
[Black "Adamczyk, Zuzanna"]
[Result "1-0"]
[Board "70"]
[TimeControl "180+1"]
[WhiteFideId "30951992"]
[BlackFideId "1187570"]
[WhiteElo "2658"]
[BlackElo "2441"]
[WhiteTeam "USA"]
[BlackTeam "POL"]
[WhiteClock "0:01:24"]
[BlackClock "0:00:12"]

1. d4 {[%clk 0:03:00]}  Nf6 {[%clk 0:02:43]} 2. Nc3 {[%clk 0:03:00]}  e6 {[%clk 0:02:41]} 3. Bf4 {[%clk 0:03:00]}  Bb4 {[%clk 0:02:36]} 4. e3 {[%clk 0:03:00]}  Bxc3+ {[%clk 0:02:36]} 5. bxc3 {[%clk 0:03:00]}  O-O {[%clk 0:02:36]} 6. Bd3 {[%clk 0:03:00]}  b6 {[%clk 0:02:31]} 7. e4 {[%clk 0:02:59]}  Ba6 {[%clk 0:02:27]} 8. e5 {[%clk 0:02:57]}  Nd5 {[%clk 0:02:19]} 9. Bd2 {[%clk 0:02:55]}  Bxd3 {[%clk 0:02:06]} 10. cxd3 {[%clk 0:02:56]}  c5 {[%clk 0:02:07]} 11. dxc5 {[%clk 0:02:50]}  bxc5 {[%clk 0:02:07]} 12. Nf3 {[%clk 0:02:41]}  Nc6 {[%clk 0:02:06]} 13. O-O {[%clk 0:02:39]}  Rb8 {[%clk 0:01:55]} 14. Re1 {[%clk 0:02:35]}  Qb6 {[%clk 0:01:31]} 15. Qa4 {[%clk 0:02:28]}  Qb2 {[%clk 0:01:12]} 16. Qg4 {[%clk 0:02:19]}  Nce7 {[%clk 0:01:02]} 17. h4 {[%clk 0:02:11]}  Nxc3 {[%clk 0:00:57]} 18. h5 {[%clk 0:02:08]}  Ne2+ {[%clk 0:00:54]} 19. Kh2 {[%clk 0:01:57]}  Nd4 {[%clk 0:00:54]} 20. Bh6 {[%clk 0:01:50]}  g6 {[%clk 0:00:37]} 21. Bxf8 {[%clk 0:01:48]}  Rxf8 {[%clk 0:00:37]} 22. Nxd4 {[%clk 0:01:48]}  cxd4 {[%clk 0:00:36]} 23. f3 {[%clk 0:01:44]}  Nf5 {[%clk 0:00:34]} 24. Rab1 {[%clk 0:01:42]}  Qxa2 {[%clk 0:00:34]} 25. Rb7 {[%clk 0:01:40]}  Ne3 {[%clk 0:00:34]} 26. Qg3 {[%clk 0:01:38]}  Nf5 {[%clk 0:00:28]} 27. Qh3 {[%clk 0:01:37]}  Qf2 {[%clk 0:00:27]} 28. Reb1 {[%clk 0:01:34]}  a5 {[%clk 0:00:23]} 29. hxg6 {[%clk 0:01:29]}  hxg6 {[%clk 0:00:23]} 30. Rb8 {[%clk 0:01:29]}  Kg7 {[%clk 0:00:14]} 31. Rxf8 {[%clk 0:01:24]}  Kxf8 {[%clk 0:00:15]} 32. Qh8+ {[%clk 0:01:24]}  Ke7 {[%clk 0:00:13]} 33. Qf6+ {[%clk 0:01:24]}  Kf8 {[%clk 0:00:12]} 34. Rb8# {[%clk 0:01:24]} 1-0

[Event "December 5 Late 2023"]
[Site "https://www.chess.com"]
[Date "2023.12.05"]
[Round "4"]
[White "Papasimakopoulos, Alexandros"]
[Black "JERO-8914"]
[Result "1-0"]
[Board "75"]
[TimeControl "180+1"]
[WhiteFideId "4244125"]
[WhiteElo "2647"]
[BlackElo "2413"]
[WhiteTeam "GRE"]
[WhiteClock "0:00:16"]
[BlackClock "0:00:05"]

1. d4 {[%clk 0:03:00]}  d6 {[%clk 0:02:52]} 2. Nf3 {[%clk 0:03:00]}  Nf6 {[%clk 0:02:52]} 3. c4 {[%clk 0:02:50]}  g6 {[%clk 0:02:51]} 4. Nc3 {[%clk 0:02:50]}  Bg7 {[%clk 0:02:51]} 5. Bg5 {[%clk 0:02:50]}  O-O {[%clk 0:02:51]} 6. e3 {[%clk 0:02:51]}  c6 {[%clk 0:02:38]} 7. Be2 {[%clk 0:02:50]}  d5 {[%clk 0:02:38]} 8. O-O {[%clk 0:02:49]}  h6 {[%clk 0:02:33]} 9. Bh4 {[%clk 0:02:47]}  g5 {[%clk 0:02:34]} 10. Bg3 {[%clk 0:02:47]}  Bf5 {[%clk 0:02:31]} 11. Qb3 {[%clk 0:02:43]}  Qb6 {[%clk 0:02:23]} 12. Rfc1 {[%clk 0:02:13]}  Qxb3 {[%clk 0:02:19]} 13. axb3 {[%clk 0:02:11]}  a6 {[%clk 0:02:20]} 14. Ne5 {[%clk 0:02:06]}  Nbd7 {[%clk 0:02:13]} 15. Nxd7 {[%clk 0:02:05]}  Bxd7 {[%clk 0:02:11]} 16. Na4 {[%clk 0:02:04]}  Be6 {[%clk 0:01:53]} 17. Nb6 {[%clk 0:01:59]}  Rad8 {[%clk 0:01:52]} 18. Be5 {[%clk 0:01:57]}  Nd7 {[%clk 0:01:47]} 19. Bxg7 {[%clk 0:01:30]}  Kxg7 {[%clk 0:01:44]} 20. cxd5 {[%clk 0:01:28]}  Nxb6 {[%clk 0:01:38]} 21. dxe6 {[%clk 0:01:28]}  fxe6 {[%clk 0:01:31]} 22. Rc5 {[%clk 0:01:21]}  Rf5 {[%clk 0:01:22]} 23. b4 {[%clk 0:01:20]}  Rdf8 {[%clk 0:01:06]} 24. f3 {[%clk 0:01:11]}  g4 {[%clk 0:01:04]} 25. Kf2 {[%clk 0:00:24]}  gxf3 {[%clk 0:00:54]} 26. gxf3 {[%clk 0:00:23]}  Nd7 {[%clk 0:00:55]} 27. Rca5 {[%clk 0:00:20]}  Nf6 {[%clk 0:00:50]} 28. Rg1+ {[%clk 0:00:20]}  Kh8 {[%clk 0:00:45]} 29. Bd3 {[%clk 0:00:20]}  Rh5 {[%clk 0:00:37]} 30. Rxh5 {[%clk 0:00:19]}  Nxh5 {[%clk 0:00:38]} 31. Rg6 {[%clk 0:00:19]}  Rf6 {[%clk 0:00:35]} 32. Rg1 {[%clk 0:00:18]}  Ng7 {[%clk 0:00:26]} 33. f4 {[%clk 0:00:18]}  Ne8 {[%clk 0:00:24]} 34. Kf3 {[%clk 0:00:18]}  Nc7 {[%clk 0:00:23]} 35. Bc4 {[%clk 0:00:17]}  b5 {[%clk 0:00:18]} 36. Bb3 {[%clk 0:00:16]}  Rf8 {[%clk 0:00:14]} 37. e4 {[%clk 0:00:16]}  Rg8 {[%clk 0:00:14]} 38. Rxg8+ {[%clk 0:00:14]}  Kxg8 {[%clk 0:00:15]} 39. f5 {[%clk 0:00:15]}  Kf7 {[%clk 0:00:14]} 40. Kf4 {[%clk 0:00:15]}  Kf6 {[%clk 0:00:14]} 41. e5+ {[%clk 0:00:16]}  Kf7 {[%clk 0:00:13]} 42. fxe6+ {[%clk 0:00:16]}  Nxe6+ {[%clk 0:00:05]} 43. Kf5 {[%clk 0:00:16]} 1-0

[Event "December 5 Late 2023"]
[Site "https://www.chess.com"]
[Date "2023.12.05"]
[Round "4"]
[White "Cieslak, Patryk"]
[Black "Spichkin, Alexander"]
[Result "1-0"]
[Board "76"]
[TimeControl "180+1"]
[WhiteFideId "21078882"]
[BlackFideId "4144074"]
[WhiteElo "2646"]
[BlackElo "2391"]
[WhiteTeam "POL"]
[BlackTeam "RUS"]
[WhiteClock "0:01:19"]
[BlackClock "0:01:42"]

1. e4 {[%clk 0:03:00]}  e5 {[%clk 0:02:52]} 2. Nf3 {[%clk 0:03:00]}  d5 {[%clk 0:02:52]} 3. Nxe5 {[%clk 0:02:55]}  Bd6 {[%clk 0:02:52]} 4. d4 {[%clk 0:02:51]}  dxe4 {[%clk 0:02:52]} 5. Nc3 {[%clk 0:02:49]}  Bxe5 {[%clk 0:02:49]} 6. dxe5 {[%clk 0:02:49]}  Qxd1+ {[%clk 0:02:50]} 7. Kxd1 {[%clk 0:02:50]}  Nc6 {[%clk 0:02:39]} 8. Nxe4 {[%clk 0:02:35]}  Nxe5 {[%clk 0:02:36]} 9. Bf4 {[%clk 0:02:34]}  Bf5 {[%clk 0:02:35]} 10. Bxe5 {[%clk 0:02:26]}  O-O-O+ {[%clk 0:02:35]} 11. Kc1 {[%clk 0:02:15]}  f6 {[%clk 0:02:34]} 12. Ng3 {[%clk 0:02:07]}  fxe5 {[%clk 0:02:16]} 13. Nxf5 {[%clk 0:02:07]}  Rf8 {[%clk 0:02:16]} 14. Bd3 {[%clk 0:02:00]}  g6 {[%clk 0:02:16]} 15. Ne3 {[%clk 0:02:01]}  Rxf2 {[%clk 0:02:16]} 16. Rf1 {[%clk 0:02:02]}  Rxf1+ {[%clk 0:02:16]} 17. Bxf1 {[%clk 0:02:02]}  Ne7 {[%clk 0:02:16]} 18. Be2 {[%clk 0:02:01]}  Nf5 {[%clk 0:02:16]} 19. Bg4 {[%clk 0:02:00]}  Rf8 {[%clk 0:02:15]} 20. Kd2 {[%clk 0:01:59]}  Kb8 {[%clk 0:02:15]} 21. Bxf5 {[%clk 0:01:54]}  gxf5 {[%clk 0:02:15]} 22. Rf1 {[%clk 0:01:55]}  f4 {[%clk 0:02:15]} 23. Nc4 {[%clk 0:01:36]}  Re8 {[%clk 0:02:14]} 24. Ke2 {[%clk 0:01:34]}  b5 {[%clk 0:02:11]} 25. Nd2 {[%clk 0:01:34]}  c6 {[%clk 0:02:01]} 26. Ne4 {[%clk 0:01:33]}  Kc7 {[%clk 0:02:01]} 27. Rd1 {[%clk 0:01:32]}  a5 {[%clk 0:01:59]} 28. Kf3 {[%clk 0:01:32]}  Re6 {[%clk 0:01:57]} 29. c3 {[%clk 0:01:30]}  Rg6 {[%clk 0:01:51]} 30. Nc5 {[%clk 0:01:27]}  h5 {[%clk 0:01:45]} 31. Rd7+ {[%clk 0:01:23]}  Kb6 {[%clk 0:01:45]} 32. b4 {[%clk 0:01:23]}  axb4 {[%clk 0:01:45]} 33. cxb4 {[%clk 0:01:23]}  e4+ {[%clk 0:01:42]} 34. Kxe4 {[%clk 0:01:19]} 1-0

[Event "December 5 Late 2023"]
[Site "https://www.chess.com"]
[Date "2023.12.05"]
[Round "4"]
[White "Krishnan, Varun"]
[Black "Marcziter, Dmitrii"]
[Result "1-0"]
[Board "77"]
[TimeControl "180+1"]
[WhiteFideId "5054508"]
[BlackFideId "13900765"]
[WhiteElo "2644"]
[BlackElo "2387"]
[WhiteTeam "USA"]
[BlackTeam "GER"]
[WhiteClock "0:00:44"]
[BlackClock "0:00:27"]

1. d4 {[%clk 0:03:00]}  Nf6 {[%clk 0:02:59]} 2. c4 {[%clk 0:03:00]}  g6 {[%clk 0:02:59]} 3. Nc3 {[%clk 0:03:00]}  Bg7 {[%clk 0:02:59]} 4. e4 {[%clk 0:03:00]}  d6 {[%clk 0:03:00]} 5. Be2 {[%clk 0:03:00]}  O-O {[%clk 0:03:01]} 6. Nf3 {[%clk 0:03:00]}  Na6 {[%clk 0:03:01]} 7. O-O {[%clk 0:03:00]}  c5 {[%clk 0:03:01]} 8. d5 {[%clk 0:02:56]}  e6 {[%clk 0:03:01]} 9. a3 {[%clk 0:02:53]}  Re8 {[%clk 0:03:00]} 10. Rb1 {[%clk 0:02:52]}  Nc7 {[%clk 0:02:57]} 11. Bd3 {[%clk 0:02:46]}  a6 {[%clk 0:02:55]} 12. Re1 {[%clk 0:02:43]}  exd5 {[%clk 0:02:53]} 13. exd5 {[%clk 0:02:43]}  Rxe1+ {[%clk 0:02:51]} 14. Qxe1 {[%clk 0:02:42]}  Bg4 {[%clk 0:02:48]} 15. Ng5 {[%clk 0:02:39]}  h6 {[%clk 0:02:44]} 16. Nge4 {[%clk 0:02:39]}  Nxe4 {[%clk 0:02:44]} 17. Nxe4 {[%clk 0:02:38]}  b5 {[%clk 0:02:20]} 18. Bf4 {[%clk 0:02:37]}  Bf8 {[%clk 0:02:16]} 19. Qc3 {[%clk 0:02:31]}  Bg7 {[%clk 0:02:00]} 20. Qd2 {[%clk 0:02:30]}  g5 {[%clk 0:01:58]} 21. Bxd6 {[%clk 0:02:28]}  bxc4 {[%clk 0:01:57]} 22. Bxc4 {[%clk 0:01:56]}  Bf5 {[%clk 0:01:44]} 23. Bxc7 {[%clk 0:01:56]}  Qxc7 {[%clk 0:01:43]} 24. d6 {[%clk 0:01:57]}  Qa7 {[%clk 0:01:18]} 25. Re1 {[%clk 0:01:41]}  Bd4 {[%clk 0:01:11]} 26. Ng3 {[%clk 0:01:36]}  Bg6 {[%clk 0:01:05]} 27. Bd3 {[%clk 0:01:14]}  Rd8 {[%clk 0:00:46]} 28. Bxg6 {[%clk 0:01:11]}  fxg6 {[%clk 0:00:46]} 29. Re7 {[%clk 0:00:57]}  Rd7 {[%clk 0:00:45]} 30. Qe2 {[%clk 0:00:48]}  Rxd6 {[%clk 0:00:27]} 31. Rxa7 {[%clk 0:00:44]} 1-0

[Event "December 5 Late 2023"]
[Site "https://www.chess.com"]
[Date "2023.12.05"]
[Round "4"]
[White "Ehlvest, Jaan"]
[Black "Diaz, Fernando"]
[Result "1-0"]
[Board "79"]
[TimeControl "180+1"]
[WhiteFideId "4500016"]
[BlackFideId "3701255"]
[WhiteElo "2642"]
[BlackElo "2363"]
[WhiteTeam "USA"]
[BlackTeam "PAR"]
[WhiteClock "0:02:43"]
[BlackClock "0:02:32"]

1. e4 {[%clk 0:02:55]}  e6 {[%clk 0:02:29]} 2. d4 {[%clk 0:02:53]}  d5 {[%clk 0:02:29]} 3. Nc3 {[%clk 0:02:53]}  Bb4 {[%clk 0:02:29]} 4. e5 {[%clk 0:02:52]}  c5 {[%clk 0:02:29]} 5. Bd2 {[%clk 0:02:52]}  cxd4 {[%clk 0:02:29]} 6. Nb5 {[%clk 0:02:51]}  Be7 {[%clk 0:02:30]} 7. Qg4 {[%clk 0:02:49]}  Nc6 {[%clk 0:02:31]} 8. Qxg7 {[%clk 0:02:47]}  Bf6 {[%clk 0:02:31]} 9. exf6 {[%clk 0:02:46]}  Qxf6 {[%clk 0:02:32]} 10. Qxf6 {[%clk 0:02:44]}  Nxf6 {[%clk 0:02:33]} 11. Nc7+ {[%clk 0:02:43]}  Kd7 {[%clk 0:02:32]} 12. Nxa8 {[%clk 0:02:43]} 1-0